Cogmind - Beta 14 @@@ ROGUE MODE // 2024.08.19 @ 18:11:18 Player: szymekc Result: Destroyed by G-47 Trooper with Particle Gun Performance ------------- Evolutions (1) 500 Regions Visited (6) 1200 Robots Destroyed (77) 385 Value Destroyed (1788) 1788 Prototype IDs (30) 600 Alien Tech Used (0) 0 Bonus (332) 332 TOTAL SCORE: 4805 Bonus ------- High Alert Combat Kills 32 Aligned with FarCom 300 Cogmind --------- Core Integrity 0/400 Matter 268/300 Energy 94/100 System Corruption 7% Temperature Cool (9) Movement Rolling (150) Ox4 Location -8/Mines Parts ------- > --- POWER (1) -------- (None) > --- PROPULSION (2) --- Armored Wheel Armored Wheel > --- UTILITY (4) ------ Improved Heat Sink Huge Storage Unit System Purifier > --- WEAPON (2) ------- Heavy Particle Cannon 8R-AWN's Boregun > --- INVENTORY (25) --- Makeshift Power Source Light Treads Light Treads Light Treads Light Treads Superbattery (1500) High-capacity Matter Pod (200) High-capacity Matter Pod (200) Experimental Sensor Array Seismic Detector Advanced Launcher Guidance Computer Experimental Core Analyzer Improved Armor Integrity Analyzer Advanced Transmission Jammer Tractor Beam Trap Reconfigurator Latent Energy Streamer High-powered Shotgun High-powered Shotgun High-powered Shotgun High-powered Shotgun Rocket Launcher Rocket Launcher Deploy-a-Sentry Peak State ------------ > --- POWER ------------ Ion Engine > --- PROPULSION ------- Armored Wheel Armored Wheel > --- UTILITY ---------- Improved Heat Sink Huge Storage Unit Improved System Guard System Purifier > --- WEAPON ----------- Improved Assault Rifle 8R-AWN's Boregun > --- INVENTORY -------- Makeshift Power Source Light Treads Light Treads Light Treads Light Treads Superbattery High-capacity Matter Pod High-capacity Matter Pod Experimental Sensor Array Seismic Detector Advanced Launcher Guidance Computer Experimental Core Analyzer Improved Armor Integrity Analyzer Advanced Transmission Jammer Tractor Beam Trap Reconfigurator Latent Energy Streamer High-powered Shotgun High-powered Shotgun High-powered Shotgun High-powered Shotgun Rocket Launcher Rocket Launcher Deploy-a-Sentry [Rating: 48] Favorites ----------- Power Ion Engine Engine Ion Engine Propulsion Light Treads Treads Light Treads Leg Aluminum Leg Wheel Armored Wheel Utility Hardened Light Armor Plating Device Seismic Detector Storage Huge Storage Unit Processor Improved System Guard Protection Hardened Light Armor Plating Weapon Medium Laser Energy Gun Medium Laser Energy Cannon Beam Cannon Ballistic Gun High-powered Shotgun Ballistic Cannon Improved Light Cannon Launcher Rocket Launcher Special Weapon Mining Laser Slashing Weapon Katana Build | -11 -10 -10 -9 -9 -9 -8 ------- Run | Yrd Mat Min Mat Min Exi Min Slots Evolved 2 | . . . 2 . . . Power . | . . . . . . . Propulsion . | . . . . . . . Utility 2 | . . . 2 . . . Weapon . | . . . . . . . Parts Attached 89 | 4 24 6 24 . 30 1 Power 7 | . 2 1 1 . 3 . Engine 7 | . 2 1 1 . 3 . Core . | . . . . . . . Reactor . | . . . . . . . Propulsion 17 | 2 3 1 2 . 9 . Treads 12 | 2 3 1 . . 6 . Leg 1 | . . . . . 1 . Wheel 4 | . . . 2 . 2 . Hover . | . . . . . . . Flight . | . . . . . . . Utility 19 | 1 1 1 5 . 11 . Device 11 | 1 . . 2 . 8 . Storage 2 | . 1 . . . 1 . Processor 1 | . . . . . 1 . Hackware . | . . . . . . . Protection 5 | . . 1 3 . 1 . Artifact . | . . . . . . . Weapon 46 | 1 18 3 16 . 7 1 Energy Gun 12 | 1 11 . . . . . Energy Cannon 6 | . . 1 4 . . 1 Ballistic Gun 12 | . 1 1 5 . 5 . Ballistic Cannon 1 | . . . 1 . . . Launcher 12 | . 5 1 5 . 1 . Special Weapon 1 | . 1 . . . . . Impact Weapon . | . . . . . . . Slashing Weapon 2 | . . . 1 . 1 . Piercing Weapon . | . . . . . . . Special Melee Weapon . | . . . . . . . Unidentified Prototypes 5 | . . . 1 . 4 . Parts Lost 17 | . 4 . 1 . 11 1 Power 5 | . 1 . . . 3 1 Propulsion 4 | . 1 . . . 3 . Utility 4 | . . . 1 . 3 . Weapon 4 | . 2 . . . 2 . Highest Loss Streak 7 | . 2 . 1 . 7 1 To Critical Strikes 4 | . . . . . 4 . Average Slot Usage (%) 95 | . 99 99 99 100 86 94 Engine 11 | . 13 14 11 11 9 11 Treads 18 | . 27 28 . . 19 . Wheel 5 | . . . 22 22 2 22 Device 10 | . 14 . 10 11 15 22 Storage 11 | . 14 14 11 11 9 11 Protection 11 | . . 14 21 22 10 . Energy Gun 4 | . 17 5 . . . . Energy Cannon 3 | . . 8 8 . . 4 Ballistic Gun 12 | . 10 13 9 22 13 17 Slashing Weapon 1 | . . . 1 . 4 . Peak Build Rating 48 | 7 10 13 22 23 48 48 Average Rating 18 | 6 8 12 19 22 27 45 On Entrance 18 | 6 7 10 13 22 23 48 Naked Turns . | . . . . . . . Heaviest Build 109 | 13 90 97 107 102 109 102 Greatest Support 43 | 40 40 40 24 24 43 24 Greatest Overweight (x) 4 | . 4 2 4 4 4 4 Average Overweight (x) 2 | . 1 2 4 4 1 4 Largest Inventory Capacity 25 | 8 25 25 25 25 25 25 Average Capacity 23 | 8 23 25 25 25 22 25 Most Carried 25 | 6 24 25 25 25 25 24 Average Carried 20 | 4 15 23 24 24 19 24 Final Capacity 25 | 8 25 25 25 25 25 25 Final Carried 25 | 6 21 25 25 25 24 24 Class Distribution -------------------- 92% | Mutant 7% | Scavenger-Mutant Dominant Class ---------------- Mutant | -10/Materials Mutant | -10/Mines Mutant | -9/Materials Mutant | -9/Mines Mutant | -9/Exiles Mutant | -8/Mines Resources | -11 -10 -10 -9 -9 -9 -8 ----------- Run | Yrd Mat Min Mat Min Exi Min Matter Collected 2596 | 261 356 265 463 39 999 213 Remotely 156 | . . . . . 156 . Salvage Created 2343 | 174 619 237 709 . 488 116 Parts 198 | 16 41 10 57 . 70 4 Haulers Intercepted 3 | . 1 . 2 . . . Recyclers Shooed . | . . . . . . . Parts Field Recycled . | . . . . . . . Retrieved Matter . | . . . . . . . Parts Self-Destructed . | . . . . . . . Prevented . | . . . . . . . Kills | -11 -10 -10 -9 -9 -9 -8 ------- Run | Yrd Mat Min Mat Min Exi Min Combat Hostiles Destroyed 49 | . 18 6 18 . 5 2 Guns 20 | . 12 4 1 . 1 2 Cannons 6 | . . 1 5 . . . AOE 23 | . 6 1 12 . 4 . Classes Destroyed 17 | 2 7 . 5 . 3 . Worker 7 | . 3 . 4 . . . Builder 1 | . 1 . . . . . Tunneler 5 | 5 . . . . . . Hauler 3 | . 1 . 2 . . . Recycler 3 | 1 1 . 1 . . . Mechanic 1 | . . . 1 . . . Operator 1 | . 1 . . . . . Turret 1 | . . . . . 1 . Watcher 4 | . . . 4 . . . Swarmer 7 | . 3 . 4 . . . Grunt 29 | . 14 6 8 . . 1 Brawler 1 | . . . 1 . . . Duelist 2 | . . . 1 . . 1 Sentry 4 | . . . 4 . . . Subdweller 1 | . 1 . . . . . Zionite 4 | . . . . . 4 . Assembled 4 | . . . . . 4 . Best Kill Streak 12 | 4 5 2 12 . 4 2 Combat Bots Only 7 | . 3 2 7 . 4 2 Max Kills in Single Turn 3 | 1 3 1 3 . 1 1 Gunslinging . | . . . . . . . Exploded 3 | . 2 1 3 . 1 . Melee . | . . . . . . . Uniques/NPCs Destroyed 4 | . . . . . 4 . 8R-AWN (-9/Exiles) EX-HEX (-9/Exiles) EX-DEC (-9/Exiles) EX-BIN (-9/Exiles) Combat | -11 -10 -10 -9 -9 -9 -8 -------- Run | Yrd Mat Min Mat Min Exi Min Hostile Shots Fired 335 | . 86 23 36 . 176 14 Missed 80 | . 16 8 10 . 43 3 Damage Taken 4302 | . 922 248 589 . 2334 209 Core 556 | . 115 35 118 . 253 35 Absorbed by Shields . | . . . . . . . Regen/Repaired (Parts) 115 | . . . 115 . . . Core Remaining (%) 70 | 100 . 40 . . . . Volleys Fired 248 | 7 77 15 35 . 103 11 Largest 2 | 2 2 2 2 . 2 2 Hottest 120 | 70 100 90 120 . 53 105 Shots Fired 418 | 14 132 29 55 . 170 18 Gun 354 | 14 113 27 22 . 161 17 Cannon 21 | . . 1 19 . . 1 Launcher 39 | . 15 1 14 . 9 . Special 4 | . 4 . . . . . Kinetic 274 | 7 52 14 23 . 161 17 Thermal 103 | 7 63 14 18 . . 1 Explosive 39 | . 15 1 14 . 9 . Electromagnetic 2 | . 2 . . . . . Robot Hit Streak 19 | 5 14 10 12 . 19 3 Robot Miss Streak 7 | 1 3 1 7 . 3 3 Penetration Max 1 | . . . . . 1 1 Secondary Targets . | . . . . . . . Shots Hit Robots 279 | 9 87 24 33 . 115 11 Core Hits 154 | 6 46 10 48 . 37 7 Critical Kills 4 | . . . . . 4 . Critical Parts Destroyed 11 | . . . . . 9 2 Critical Strikes 20 | . 3 2 . . 13 2 Burn 5 | . 3 2 . . . . Destroy 15 | . . . . . 13 2 Melee Attacks 2 | . . . 2 . . . Impact . | . . . . . . . Slashing 2 | . . . 2 . . . Piercing . | . . . . . . . Sneak Attacks . | . . . . . . . Combat Hostiles . | . . . . . . . Follow-up Attacks . | . . . . . . . Damage Inflicted 6629 | 116 1793 470 1936 . 2085 229 Guns 3824 | 116 1034 369 303 . 1773 229 Cannons 219 | . . 18 201 . . . Explosions 2546 | . 753 78 1409 . 306 . Melee . | . . . . . . . Ramming 40 | . 6 5 23 . 6 . Kinetic 3092 | 40 496 228 326 . 1773 229 Thermal 1047 | 76 520 159 292 . . . Explosive 2432 | . 753 78 1295 . 306 . Electromagnetic 18 | . 18 . . . . . Impact . | . . . . . . . Slashing . | . . . . . . . Piercing . | . . . . . . . Highest Corruption 9 | . . . 1 1 9 9 Average Corruption 1 | . . . 1 1 1 7 Corruption Purged 2 | . . . . . . 2 Corruption Blocked . | . . . . . . . Effects 43 | . . . 6 7 29 1 Message Errors 10 | . . . 1 1 7 1 Matter Fused 14 | . . . 3 4 7 . Heat Flow Errors 2 | . . . . . 2 . Energy Discharges 4 | . . . . 1 3 . Parts Fused 1 | . . . . . 1 . Data Loss (minor) 4 | . . . . . 4 . Data Loss (major) 3 | . . . . . 3 . Misfires 2 | . . . 2 . . . Alerts 3 | . . . . 1 2 . Overload Shots . | . . . . . . . Overflow Damage 51 | . 3 . 48 . . . Projectiles . | . . . . . . . Explosions 51 | . 3 . 48 . . . Melee . | . . . . . . . Knockbacks 1 | . . 1 . . . . Impact 1 | . . 1 . . . . Kinetic . | . . . . . . . Secondary . | . . . . . . . Self-Inflicted Damage 364 | . . 40 175 . 149 . Shots 9 | . . 1 4 . 4 . Rammed 5 | . 1 1 2 . 1 . Targets Rammed 5 | . 1 1 2 . 1 . Kicked . | . . . . . . . Crushed . | . . . . . . . Highest Temperature 271 | 56 208 210 271 . 226 . Average Temperature 74 | 26 64 85 86 . 94 . Received Heat Transfer 810 | . 486 126 117 . . 81 Effects 1 | . . . 1 . . . Interference 1 | . . . 1 . . . Siege Activations . | . . . . . . . Robots Corrupted . | . . . . . . . Combat Hostiles . | . . . . . . . Parts Fried . | . . . . . . . Impact Corruptions . | . . . . . . . Robots Melted . | . . . . . . . Combat Hostiles . | . . . . . . . Parts Melted 3 | . 1 1 1 . . . Heat Transferred 3023 | 222 1739 592 470 . . . Parts Sabotaged . | . . . . . . . Parts Stolen . | . . . . . . . Parts Stripped . | . . . . . . . Power Chain Reactions . | . . . . . . . Alert | -11 -10 -10 -9 -9 -9 -8 ------- Run | Yrd Mat Min Mat Min Exi Min Peak Influence 601 | 30 248 212 601 140 . 69 Initial 140 | . 19 95 . 140 . . Average 145 | 16 103 52 404 82 . 57 Maximum Alert Level 2 | . 1 1 2 . . . Low Security (%) 72 | 100 89 82 9 100 . 100 Level 1 14 | . 10 17 24 . . . Level 2 13 | . . . 65 . . . Level 3 . | . . . . . . . Level 4 . | . . . . . . . Level 5 . | . . . . . . . High Security . | . . . . . . . Max Security . | . . . . . . . Squads Dispatched 6 | . 4 . 2 . . . Investigation 3 | . 2 . 1 . . . Extermination . | . . . . . . . Reinforcement 3 | . 2 . 1 . . . Assault . | . . . . . . . Garrison . | . . . . . . . Intercept . | . . . . . . . Searches Triggered . | . . . . . . . Construction Impeded . | . . . . . . . Haulers Reinforced . | . . . . . . . Active Scanning Responses . | . . . . . . . Cargo Convoy Interrupts . | . . . . . . . Stealth | -11 -10 -10 -9 -9 -9 -8 --------- Run | Yrd Mat Min Mat Min Exi Min Distress Signals 6 | . 3 . 3 . . . Communications Jammed . | . . . . . . . Distress Signals . | . . . . . . . Times Spotted 91 | . 24 6 20 . 35 6 Peak Tracking Total 9 | . 4 2 7 . 9 3 Tactical Retreats 17 | . . 1 . . 15 1 Traps | -11 -10 -10 -9 -9 -9 -8 ------- Run | Yrd Mat Min Mat Min Exi Min Traps Triggered 2 | . 1 . 1 . . . Indirectly . | . . . . . . . Trap Hack Attempts . | . . . . . . . Triggered . | . . . . . . . Disarmed . | . . . . . . . Reprogrammed . | . . . . . . . Reused . | . . . . . . . Traps Extracted . | . . . . . . . Installed . | . . . . . . . Triggered . | . . . . . . . Machines | -11 -10 -10 -9 -9 -9 -8 ---------- Run | Yrd Mat Min Mat Min Exi Min Machines Disabled 23 | . 3 . 4 . 16 . Max in Single Turn 2 | . 1 . 2 . 2 . Machines Repaired . | . . . . . . . Machines Dismantled . | . . . . . . . Machines Sabotaged . | . . . . . . . Overloaded Fab Kills . | . . . . . . . Hacking | -11 -10 -10 -9 -9 -9 -8 --------- Run | Yrd Mat Min Mat Min Exi Min Machines Accessed 19 | . 8 1 8 . 2 . Terminals 13 | . 6 . 7 . . . Fabricators . | . . . . . . . Repair Stations 1 | . . . 1 . . . Recycling Units 2 | . 2 . . . . . Scanalyzers . | . . . . . . . Garrison Access . | . . . . . . . Total Hacks 65 | . 29 1 33 . 2 . Successful 42 | . 16 1 23 . 2 . Failed 23 | . 13 . 10 . . . Catastrophic 5 | . 3 . 2 . . . Database Lockouts . | . . . . . . . Manual 39 | . 18 . 20 . 1 . Terminals 55 | . 24 . 31 . . . Fabricators . | . . . . . . . Repair Stations 2 | . . . 2 . . . Recycling Units 5 | . 5 . . . . . Scanalyzers . | . . . . . . . Garrison Access . | . . . . . . . Terminal Hacks 18 | . 5 1 10 . 2 . Record 1 | . . . . . 1 . Robot Analysis 2 | . 2 . . . . . Prototype ID Bank 1 | . . . 1 . . . Open Door 1 | . . 1 . . . . Branch Access Points 1 | . . . 1 . . . Terminal Index 1 | . . . 1 . . . Alert Level 1 | . 1 . . . . . Locate Traps 2 | . 1 . 1 . . . Transport Status 1 | . . . 1 . . . Hauler Manifests 1 | . . . 1 . . . Zone Layout 5 | . 1 . 4 . . . Derelict Proto ID Bank 1 | . . . . . 1 . Fabricator Hacks . | . . . . . . . Repair Station Hacks 2 | . . . 2 . . . Scan Component 1 | . . . 1 . . . Repair 1 | . . . 1 . . . Recycling Unit Hacks 1 | . 1 . . . . . Retrieve Components 1 | . 1 . . . . . Scanalyzer . | . . . . . . . Garrison Access Hacks . | . . . . . . . Unauthorized Hacks 21 | . 10 . 11 . . . Terminals 19 | . 8 . 11 . . . Track 2 | . 1 . 1 . . . Assimilate 1 | . 1 . . . . . Botnet 2 | . . . 2 . . . Disrupt 1 | . . . 1 . . . Operators 2 | . 1 . 1 . . . Skim 11 | . 5 . 6 . . . Fabricators . | . . . . . . . Repair Stations . | . . . . . . . Recycling Units 2 | . 2 . . . . . Tunnel 2 | . 2 . . . . . Scanalyzers . | . . . . . . . Garrison Access . | . . . . . . . Data Cores Recovered . | . . . . . . . Used . | . . . . . . . Hacking Detections 14 | . 6 . 8 . . . Full Trace Events 1 | . . . 1 . . . Feedback Events 1 | . . . 1 . . . Corruption 1 | . . . 1 . . . Feedback Blocked . | . . . . . . . Robot Schematics Acquired . | . . . . . . . Robots Built . | . . . . . . . Authchips . | . . . . . . . Time . | . . . . . . . Total Robot Build Rating . | . . . . . . . Part Schematics Acquired . | . . . . . . . Parts Built . | . . . . . . . Authchips . | . . . . . . . Time . | . . . . . . . Total Part Build Rating . | . . . . . . . Parts Repaired 1 | . . . 1 . . . Time 32 | . . . 32 . . . Parts Recycled . | . . . . . . . Recycled Matter . | . . . . . . . Retrieved Matter . | . . . . . . . Retrieved Components 10 | . 10 . . . . . Parts Scanalyzed . | . . . . . . . Part Schematics Acquired . | . . . . . . . Parts Damaged . | . . . . . . . Bothacking | -11 -10 -10 -9 -9 -9 -8 ------------ Run | Yrd Mat Min Mat Min Exi Min Used RIF Installer . | . . . . . . . Robots Hacked . | . . . . . . . Non-combat . | . . . . . . . Combat . | . . . . . . . Robot Hacks Applied . | . . . . . . . Relay Couplers Released . | . . . . . . . Fabnet Peak Effective % . | . . . . . . . Robots Rewired . | . . . . . . . Allies Hacked . | . . . . . . . Hacks Repelled . | . . . . . . . Allies | -11 -10 -10 -9 -9 -9 -8 -------- Run | Yrd Mat Min Mat Min Exi Min Total Allies 4 | . . 1 . 3 . . Largest Group 3 | . . 1 . 3 3 . Highest-Rated Group 40 | . . 31 . 40 40 . Highest-Rated Ally 31 | . . 31 . 16 16 . Total Orders 2 | . . . . . 2 . STAY 1 | . . . . . 1 . ROAM 1 | . . . . . 1 . Ally Attacks 2 | . . . . . 2 . Total Damage 19 | . . . . . 19 . Kills 1 | . . . . . 1 . Allies Corrupted . | . . . . . . . Allies Melted . | . . . . . . . Intel | -11 -10 -10 -9 -9 -9 -8 ------- Run | Yrd Mat Min Mat Min Exi Min Robot Analysis Total 2 | . 2 . . . . . Derelict Logs Recovered 3 | . . 2 . 1 . . Drone Launches 16 | . . . . . 16 . Drone Recoveries . | . . . . . . . Exploration | -11 -10 -10 -9 -9 -9 -8 ------------- Run | Yrd Mat Min Mat Min Exi Min Turns Passed 8760 | 96 1879 1907 1226 677 2887 88 Spaces Moved 3206 | 34 528 571 663 435 937 38 Core 1 | . . . . . 1 . Treads 1849 | 27 528 571 . . 723 . Legs 7 | 7 . . . . . . Wheels 1349 | . . . 663 435 213 38 Hover . | . . . . . . . Flight . | . . . . . . . Fastest Speed 120 | 120 160 320 150 150 135 150 Average Speed 235 | 151 295 320 150 150 257 150 Slowest Speed 480 | 160 480 320 150 150 320 150 Overloaded Moves . | . . . . . . . Propulsion Burnouts . | . . . . . . . Robots Hopped . | . . . . . . . Cave-ins Triggered . | . . . . . . . Exploration Rate (%) 61 | 2 91 98 46 87 90 13 Regions Visited 6 Branch Regions 4 Pre-discovered Areas 6 | . 2 . 3 . 1 . Known Exits Taken 1 | . . . 1 . . . Unknown Exits Taken 5 | 1 1 1 . 1 1 . Scrap Searched 5 | . . 3 . 1 . 1 Spaces Dug 46 | . 16 . 30 . . . Terrain Destroyed 284 | . 68 7 158 . 41 10 Melee 2 | . . . 2 . . . Projectile 15 | . 2 . . . 3 10 AOE 267 | . 66 7 156 . 38 . Terrain Rammed . | . . . . . . . Walls Destroyed . | . . . . . . . Machines Disabled . | . . . . . . . Actions | -11 -10 -10 -9 -9 -9 -8 --------- Run | Yrd Mat Min Mat Min Exi Min Total 3992 | 64 703 622 847 460 1244 52 Wait 298 | 16 36 20 76 24 126 . Move 3200 | 33 527 570 662 434 936 38 Hop . | . . . . . . . Pick Up 88 | 2 27 5 23 1 30 . Fast Attach 15 | 1 2 1 3 . 7 1 Attach 28 | 2 4 . 7 . 15 . Detach 3 | . . . 2 . 1 . Swap 46 | 1 18 5 14 . 8 . Drop 59 | 2 11 5 21 1 17 2 Fire 248 | 7 77 15 35 . 103 11 Melee 2 | . . . 2 . . . Ram 2 | . . . 2 . . . Kick . | . . . . . . . Crush 3 | . 1 1 . . 1 . Escape Stasis . | . . . . . . . Rewire . | . . . . . . . Trap . | . . . . . . . Miscellaneous . | . . . . . . . Route ------- -11/Scrapyard -10/Materials (discovered 4 exits: *Mat x3 / *Min) -10/Mines (discovered 2 exits: *Mat x2) -9/Materials (discovered 3 exits: *Mat x2 / *Min) -9/Mines (discovered 3 exits: *Mat x2 / *Exi) -9/Exiles -8/Mines History --------- Turn | Location | Event 1 | -11/Scrapyard | Discovered new exit (range 3) 97 | -11/Scrapyard | Entered Materials 318 | -10/Materials | Build established: Mutant 716 | -10/Materials | Discovered new exit (range 10) 1142 | -10/Materials | Discovered new exit (range 7) 1551 | -10/Materials | Discovered new exit (range 15) 1597 | -10/Materials | Derelicts attacked the area 1860 | -10/Materials | Discovered new exit (range 6) 1976 | -10/Materials | Entered Mines 2013 | -10/Mines | Learned Materials emergency access door positions 2019 | -10/Mines | Core integrity fell below 50% 2476 | -10/Mines | Found the Drone Emporium 2494 | -10/Mines | Found Prototype Device 2569 | -10/Mines | Discovered new exit (range 13) 2649 | -10/Mines | Found DCF Scrap (13 items) 2738 | -10/Mines | Learned Materials emergency access door positions 2991 | -10/Mines | Received a Rocket Launcher from a helpful Derelict 3499 | -10/Mines | Discovered new exit (range 7) 3502 | -10/Mines | Received a Mining Laser from a helpful Derelict 3883 | -10/Mines | Entered Materials 3883 | -9/Materials | Evolved 2 slots: Utility x2 3954 | -9/Materials | Identified exit to Mines 4374 | -9/Materials | Destroyed 7 combat bots 4591 | -9/Materials | Discovered new exit (range 7) 4678 | -9/Materials | Learned Storage stockpile data 4751 | -9/Materials | Learned Storage emergency access door positions 4861 | -9/Materials | Learned location of Zion (-7) 4965 | -9/Materials | Loaded intel: 2 repair station locations 5015 | -9/Materials | Identified exit to Materials 5030 | -9/Materials | Repaired Hrd. Light Armor Plating 5109 | -9/Materials | Entered Mines 5151 | -9/Mines | Found a damaged Exp. Sensor Array with a note attached 5155 | -9/Mines | Found Prototype Device 5187 | -9/Mines | Met a Derelict bent on vengeance 5225 | -9/Mines | Discovered exit to Materials (range 11) 5382 | -9/Mines | Assisted by bots powering up and referring to "LRC-V3" 5711 | -9/Mines | Learned Materials terminal intel 5731 | -9/Mines | Discovered exit to Materials (range 16) 5772 | -9/Mines | Deemed a non-threat by the Exiles lab entrance 5773 | -9/Mines | Discovered new exit (range 5) 5786 | -9/Mines | Entered Exiles 5786 | -9/Exiles | Accompanied by 3 allies 5856 | -9/Exiles | Met 8R-AWN 5910 | -9/Exiles | Met EX-HEX 5996 | -9/Exiles | Met EX-BIN 6034 | -9/Exiles | Aligned with FarCom system 6038 | -9/Exiles | Given EX-Vault access code 6114 | -9/Exiles | Opened EX-Vault 6198 | -9/Exiles | Warned to stay clear of 0b10 Research branches 6290 | -9/Exiles | Met EX-DEC 7005 | -9/Exiles | Attacked by the Exiles 7121 | -9/Exiles | Core integrity fell below 50% 7131 | -9/Exiles | Lost 3 allies 7226 | -9/Exiles | Lost 7 parts (1p2n2u2w) 7265 | -9/Exiles | Destroyed 8R-AWN 7280 | -9/Exiles | Found Prototype Ballistic Gun 7280 | -9/Exiles | Identified 8R-AWN's Boregun 7297 | -9/Exiles | Identified Decoy Drone Bay 7909 | -9/Exiles | Destroyed EX-HEX 8021 | -9/Exiles | Core integrity fell below 20% 8037 | -9/Exiles | Build established: Scavenger-Mutant 8047 | -9/Exiles | Destroyed EX-DEC 8075 | -9/Exiles | Destroyed EX-BIN 8088 | -9/Exiles | Found Prototype Processor 8137 | -9/Exiles | Found Deploy-a-Sentry 8151 | -9/Exiles | Lost 6 allies 8158 | -9/Exiles | Found Prototype Device 8529 | -9/Exiles | Found Trap Reconfigurator 8535 | -9/Exiles | Found Latent Energy Streamer 8543 | -9/Exiles | Found Superbattery 8661 | -9/Exiles | Discovered new exit (range 10) 8669 | -9/Exiles | Identified System Purifier 8673 | -9/Exiles | Stole four prototypes: Superbattery, Trap Reconfigurator, Latent Energy Streamer, Deploy-a-Sentry 8673 | -9/Exiles | Entered Mines 8761 | -8/Mines | Destroyed by G-47 Trooper with Particle Gun Last Messages --------------- 08715_ Acquired 31 matter. 08715_ Acquired 63 matter. 08720_ Dropped Imp. Assault Rifle. 08721_ Acquired Unknown Energy Cannon. 08721_ Identified Hvy. Particle Cannon. 08723_ Acquired 3 matter. 08725_ Discarded Imp. System Guard. 08731_ Y9KM0WL%KRL:E=J:SLC:WQ4SZKJ0V 08735_ System Purifier purges 1% system corruption (8%). 08751_ HV Slug penetrates Wall. 08751_ HV Slug penetrates Earth. 08752_ System Purifier purges 1% system corruption (7%). 08754_ HV Slug penetrates Earth. 08756_ HV Slug penetrates G-50 Soldier. 08756_ HV Slug penetrates Wall. 08758_ HV Slug penetrates G-47 Trooper. 08758_ HV Slug penetrates G-50 Soldier. 08760_ HV Slug penetrates Pressure Siphon. 08760_ HV Slug penetrates G-50 Soldier. 08760_ Ion Engine destroyed. Map ----- +----------------------------------------------------+ | ???????????????????????????????????????? | | ???????????????????????????????????????? | | ???????????????????????????????????????? | | ???????????????????????????????????????? | | ???????????????????????????????????????? | | ???????????????????????????????????????? | | ???????????????????????????????????????? | | ???????????????????????????????????????? | | ???????????????????????????????????????? | | ???????????????????????????????????????? | | ???????????????????????????????????????? | | ??????????????? ??????????????????????? | | ??????????????? ??????????????????????? | | ??????????????? ??????????????????????? | | ??????????????? ?????????#????????????? | | ??????????????? ####???? #????????????? | | ?????????????? #### #????????????? | | ??????????????? ;#; #????????????? | | ???????? ???? ??????????????? | | ??????? ? ???????????????? | | ????????# ????????????????? | | ?????????# """ ??????????????????? | | ?????????# """ gg ???????????????????? | | ?????????# """ g ????????????????????? | | ??????????# """ ####??????????????????? | | ?????????## @ ; #??????????????????? | | ?????????# ########??????????????? | | ????????# #??????????????? | | ????????## ## #??????????????? | | ?????????##??## ###### #??????????????? | | ??????????????####????# #??????????????? | | ??????????????????????# #??????????????? | | ??????????????????????# #??????????????? | | ??????????????????????# #??????????????? | | ?????????????????????## #??????????????? | | ??#?####?????????????# ##?????????????? | | ??#"# ############### ##????????????? | | ???# = [ ##???????????? | | ???# = [ ! #???????????? | | ???# ! = ############# #?????? | | ???## "##????????????# #?????? | | ????######?????????????? ## ##?????? | | ????????????????????????# ##??##??????? | | ?????????????????????????###???????????? | | ???????????????????????????????????????? | | | | | | | | | | | +----------------------------------------------------+ Best States ------------- Heat Dissipation 42 Energy Generation 10 Energy Capacity 250 Matter Stores 300 Matter Capacity 300 Sight Range 16 Terrain Scan Density 10 Corruption Containment 12 Armor Coverage 450 Evasion (%) 45 Recoil Reduction 2 Item Schematics ----------------- None Robot Schematics ------------------ None Fabricated ------------ Nothing Alien Tech Used ----------------- None Achievements -------------- None Challenges ------------ None Game ------ Seed CloakSchematicKinecellerator Manual? 0 Play Time 00:42:03 Cumulative 353.7 hours Start 2024.08.19 @ 17:28:07 End 2024.08.19 @ 18:11:18 Sessions 1 Manual Loads 0 Difficulty Rogue Special Mode None Game No. 130 Rogue 128 Adventurer 2 Explorer 0 Win Type - Total 16 Types 6/0/8/1/0/0/0/1/0 Lore% 73 Gallery% 84 Achievement% 75 Wizard Run 0 Options --------- Layout 0 ASCII 0 Keyboard 0 Movement Numpad Keybinds 0 Fullscreen 2 Font 24/Smallcaps Map View 76x50 Zoom Use 0% Tactical HUD 1 Map Filters NONE Filters NONE Steam 1 RUN: c83f6af9-2869-4210-99cd-71b7aaa1d8aa